Cogmind - Beta 15 @@@ ROGUE MODE // 2025.08.13 @ 14:08:41 Player: Andru7428 Result: Destroyed by K6-Z6S(R) with Subdweller Laser Performance ------------- Evolutions (0) 0 Regions Visited (2) 400 Robots Destroyed (38) 190 Value Destroyed (1025) 1025 Prototype IDs (11) 220 Alien Tech Used (0) 0 Bonus (-28) -28 TOTAL SCORE: 1807 Bonus ------- Friendly Fire -28 Cogmind --------- Core Integrity 0/250 Matter 282/300 Energy 125/125 System Corruption 0% Temperature Cool (6) Movement Treading (160) Location -10/Subcaves Parts ------- > --- POWER (1) -------- Light Ion Engine > --- PROPULSION (2) --- Improved Treads Improved Treads > --- UTILITY (2) ------ Large Storage Unit Makeshift Light Armor Plating > --- WEAPON (2) ------- Assault Rifle Battle Cannon > --- INVENTORY (15) --- Neutrino Core Improved Treads Spiked Treads Compact Wheel Flightbrick Large Matter Pod (150) Scrap Shield Assault Rifle Battle Rifle Maul Peak State ------------ > --- POWER ------------ Subdweller Power Source > --- PROPULSION ------- Improved Treads Improved Treads > --- UTILITY ---------- Large Storage Unit Makeshift Light Armor Plating > --- WEAPON ----------- Bore Cannon Maul > --- INVENTORY -------- Neutrino Core Improved Treads Spiked Treads Compact Wheel Flightbrick Large Matter Pod Scrap Shield Scrap Shield Assault Rifle Assault Rifle [Rating: 23] Favorites ----------- Power Light Ion Engine Engine Light Ion Engine Propulsion Improved Treads Treads Improved Treads Utility Large Storage Unit Device Seismic Detector Storage Large Storage Unit Protection Makeshift Light Armor Plating Weapon Assault Rifle Energy Gun Medium Laser Ballistic Gun Assault Rifle Ballistic Cannon Bore Cannon Launcher Grenade Launcher Impact Weapon Maul Build | -11 -10 -10 ------- Run | Yrd Mat Sub Slots Evolved . | . . . Power . | . . . Propulsion . | . . . Utility . | . . . Weapon . | . . . Parts Attached 28 | 9 8 11 Power 7 | 2 1 4 Engine 7 | 2 1 4 Core . | . . . Reactor . | . . . Propulsion 7 | 2 2 3 Treads 7 | 2 2 3 Leg . | . . . Wheel . | . . . Hover . | . . . Flight . | . . . Utility 4 | 2 1 1 Device 1 | 1 . . Storage 2 | 1 1 . Processor . | . . . Hackware . | . . . Protection 1 | . . 1 Artifact . | . . . Weapon 10 | 3 4 3 Energy Gun 1 | 1 . . Energy Cannon . | . . . Ballistic Gun 5 | 2 2 1 Ballistic Cannon 2 | . . 2 Launcher 1 | . 1 . Special Weapon . | . . . Impact Weapon 1 | . 1 . Slashing Weapon . | . . . Piercing Weapon . | . . . Special Melee Weapon . | . . . Unidentified Prototypes . | . . . Parts Lost 9 | . . 9 Power 3 | . . 3 Propulsion 2 | . . 2 Utility 1 | . . 1 Weapon 3 | . . 3 Highest Loss Streak 8 | . . 8 To Critical Strikes . | . . . Average Backups 9 | 6 7 10 Power 1 | 1 1 1 Propulsion 3 | 3 3 3 Utility 1 | . . 2 Weapon 2 | 1 2 3 Tool/Special . | . . . Unused Backups 14 | . 4 10 Power 1 | . . 1 Propulsion 6 | . 3 3 Utility 4 | . . 4 Weapon 3 | . 1 2 Tool/Special . | . . . Average Slot Usage (%) 99 | . 99 98 Engine 13 | . 14 13 Treads 27 | . 27 27 Device 6 | . 14 1 Storage 14 | . 14 14 Protection 7 | . . 11 Energy Gun 3 | . 8 . Ballistic Gun 9 | . 17 4 Ballistic Cannon 8 | . . 12 Impact Weapon 6 | . 1 9 Peak Build Rating 23 | 7 11 23 Average Rating 15 | 4 9 19 On Entrance 5 | . 7 10 Naked Turns . | . . . Heaviest Build 41 | 13 31 41 Greatest Support 46 | 40 46 46 Greatest Overweight (x) . | . . . Average Overweight (x) . | . . . Largest Inventory Capacity 15 | 8 15 15 Average Capacity 12 | 7 9 15 Most Carried 15 | 8 9 15 Average Carried 10 | 6 7 13 Final Capacity 15 | 8 15 15 Final Carried 14 | 6 9 14 Class Distribution -------------------- 100% | Mutant Dominant Class ---------------- Mutant | -10/Materials Mutant | -10/Subcaves Resources | -11 -10 -10 ----------- Run | Yrd Mat Sub Matter Collected 1087 | 275 363 449 Remotely . | . . . Salvage Created 942 | 91 424 427 Parts 61 | 3 31 27 Haulers Intercepted 1 | . 1 . Recyclers Shooed . | . . . Parts Field Recycled . | . . . Retrieved Matter . | . . . Parts Self-Destructed 3 | . . 3 Prevented . | . . . Kills | -11 -10 -10 ------- Run | Yrd Mat Sub Combat Hostiles Destroyed 28 | . 12 16 Melee 3 | . 1 2 Guns 9 | . 9 . Cannons 6 | . . 6 AOE 8 | . . 8 Classes Destroyed 8 | 2 5 1 Worker 3 | . 3 . Tunneler 3 | 1 2 . Hauler 1 | . 1 . Recycler 1 | 1 . . Watcher 2 | . 2 . Swarmer 5 | . 5 . Grunt 7 | . 7 . Subdweller 16 | . . 16 Best Kill Streak 7 | 1 6 7 Combat Bots Only 7 | . 4 7 Max Kills in Single Turn 6 | 1 6 3 Gunslinging . | . . . Exploded 3 | . . 3 Melee 1 | . 1 1 Uniques/NPCs Destroyed . | . . . Combat | -11 -10 -10 -------- Run | Yrd Mat Sub Hostile Shots Fired 136 | . 53 83 Missed 45 | . 17 28 Hits 91 | . 36 55 Projectile 91 | . 36 55 Critical Strikes 1 | . . 1 Damage Taken 1711 | . 351 1360 Core 253 | . 52 201 Absorbed by Shields . | . . . Core Remaining (%) 100 | 100 . . Volleys Fired 75 | 13 34 28 Largest 2 | 2 2 2 Hottest 81 | 70 70 81 Shots Fired 131 | 26 68 37 Gun 97 | 26 68 3 Cannon 27 | . . 27 Launcher 7 | . . 7 Special . | . . . Kinetic 84 | 13 41 30 Thermal 40 | 13 27 . Explosive 7 | . . 7 Electromagnetic . | . . . Robot Hit Streak 11 | 7 11 11 Robot Miss Streak 5 | 5 2 2 Penetration Max . | . . . Secondary Targets . | . . . Shots Hit Robots 107 | 16 53 38 Core Hits 49 | 3 24 22 Critical Kills 4 | . 1 3 Critical Parts Destroyed 1 | . 1 . Critical Strikes 15 | 1 6 8 Burn 5 | 1 4 . Destroy 5 | . . 5 Blast 1 | . . 1 Smash 4 | . 2 2 Melee Attacks 47 | . 9 38 Impact 47 | . 9 38 Slashing . | . . . Piercing . | . . . Sneak Attacks 2 | . . 2 Combat Hostiles . | . . . Follow-up Attacks . | . . . Damage Inflicted 3781 | 196 1626 1959 Guns 836 | 196 629 11 Cannons 478 | . . 478 Explosions 1945 | . 833 1112 Melee 521 | . 163 358 Ramming 1 | . 1 . Kinetic 992 | 108 395 489 Thermal 322 | 88 234 . Explosive 1945 | . 833 1112 Electromagnetic . | . . . Impact 521 | . 163 358 Slashing . | . . . Piercing . | . . . Highest Corruption . | . . . Average Corruption . | . . . Corruption Purged . | . . . Corruption Blocked . | . . . Overload Shots . | . . . Overflow Damage 265 | . 227 38 Projectiles . | . . . Explosions 201 | . 201 . Melee 64 | . 26 38 Knockbacks 6 | . . 6 Impact 3 | . . 3 Kinetic 3 | . . 3 Secondary . | . . . Self-Inflicted Damage 162 | . . 162 Shots 6 | . . 6 Rammed 1 | . 1 . Targets Rammed 1 | . 1 . Kicked . | . . . Crushed . | . . . Highest Temperature 84 | . 84 . Average Temperature 29 | . 29 . Received Heat Transfer 333 | . 120 213 Siege Activations . | . . . Martial Activations . | . . . Shielding Activations . | . . . Robots Disrupted . | . . . Combat Hostiles . | . . . Robots Corrupted 1 | . 1 . Combat Hostiles 1 | . 1 . Parts Fried 2 | . 2 . Impact Corruptions 2 | . 1 1 Robots Melted 1 | . 1 . Combat Hostiles 1 | . 1 . Parts Melted . | . . . Heat Transferred 1295 | 333 962 . Parts Sabotaged . | . . . Parts Stolen . | . . . Parts Stripped . | . . . Power Chain Reactions . | . . . Alert | -11 -10 -10 ------- Run | Yrd Mat Sub Maximum Alert Level . | . . . Low Security (%) 100 | 100 100 . Level 1 . | . . . Level 2 . | . . . Level 3 . | . . . Level 4 . | . . . Level 5 . | . . . High Security . | . . . Max Security . | . . . Peak Influence 119 | 5 119 . Initial . | . . . Average 50 | . 58 . Influence Increases 468 | 10 458 . Destroy 0b10 Robot/C 240 | . 240 . Destroy 0b10 Robot/NC 50 | 10 40 . Destroy Leader 56 | . 56 . Successful Hack 23 | . 23 . Disable Machine 30 | . 30 . Destroy Structure 24 | . 24 . Lose Combat Pursuer 45 | . 45 . Influence Decreases 468 | 10 390 68 Entered New Map 33 | . . 33 Time Decay 435 | 10 390 35 Squads Dispatched 4 | . 4 . Investigation 3 | . 3 . Extermination . | . . . Reinforcement 1 | . 1 . Assault . | . . . Garrison . | . . . Intercept . | . . . Searches Triggered . | . . . Construction Impeded . | . . . Haulers Reinforced . | . . . Active Scanning Responses . | . . . Cargo Convoy Interrupts . | . . . Stealth | -11 -10 -10 --------- Run | Yrd Mat Sub Distress Signals 1 | . 1 . Communications Jammed . | . . . Distress Signals . | . . . Times Spotted 42 | . 20 22 Peak Tracking Total 6 | . 4 6 Tactical Retreats 3 | . 3 . Traps | -11 -10 -10 ------- Run | Yrd Mat Sub Traps Triggered 2 | . 2 . Indirectly . | . . . Trap Hack Attempts . | . . . Triggered . | . . . Disarmed . | . . . Reprogrammed . | . . . Reused . | . . . Traps Extracted . | . . . Installed . | . . . Triggered . | . . . Most Traps Carried 1 | . . 1 Machines | -11 -10 -10 ---------- Run | Yrd Mat Sub Machines Disabled 3 | . 2 1 Max in Single Turn 2 | . 2 1 Machines Repaired . | . . . Machines Dismantled . | . . . Machines Sabotaged . | . . . Overloaded Fab Kills . | . . . Hacking | -11 -10 -10 --------- Run | Yrd Mat Sub Machines Accessed 7 | . 4 3 Terminals 4 | . 4 . Fabricators . | . . . Repair Stations . | . . . Recycling Units . | . . . Scanalyzers . | . . . Garrison Access . | . . . Total Hacks 20 | . 15 5 Successful 11 | . 6 5 Failed 9 | . 9 . Catastrophic 1 | . 1 . Database Lockouts . | . . . Manual 13 | . 13 . Terminals 15 | . 15 . Fabricators . | . . . Repair Stations . | . . . Recycling Units . | . . . Scanalyzers . | . . . Garrison Access . | . . . Terminal Hacks 11 | . 6 5 Record 3 | . . 3 Part Schematic 1 | . 1 . Robot Analysis 2 | . 2 . Open Door 1 | . . 1 Locate Traps 1 | . 1 . Patrol Status 1 | . 1 . Recall Investigation 1 | . 1 . Proto ID Catalog 1 | . . 1 Fabricator Hacks . | . . . Repair Station Hacks . | . . . Recycling Unit Hacks . | . . . Scanalyzer . | . . . Garrison Access Hacks . | . . . Unauthorized Hacks . | . . . Terminals . | . . . Fabricators . | . . . Repair Stations . | . . . Recycling Units . | . . . Scanalyzers . | . . . Garrison Access . | . . . Data Cores Recovered . | . . . Used . | . . . Hacking Detections 3 | . 3 . Full Trace Events 1 | . 1 . Feedback Events . | . . . Feedback Blocked . | . . . Robot Schematics Acquired . | . . . Robots Built . | . . . Authchips . | . . . Time . | . . . Total Robot Build Rating . | . . . Part Schematics Acquired 1 | . 1 . Parts Built . | . . . Authchips . | . . . Time . | . . . Total Part Build Rating . | . . . Parts Repaired . | . . . Time . | . . . Parts Recycled . | . . . Recycled Matter . | . . . Retrieved Matter . | . . . Retrieved Components . | . . . Parts Scanalyzed . | . . . Part Schematics Acquired . | . . . Parts Damaged . | . . . Bothacking | -11 -10 -10 ------------ Run | Yrd Mat Sub Used RIF Installer . | . . . Robots Hacked . | . . . Non-combat . | . . . Combat . | . . . Robot Hacks Applied . | . . . Relay Couplers Released . | . . . Fabnet Peak Effective % . | . . . Robots Rewired . | . . . Allies Hacked . | . . . Hacks Repelled . | . . . Allies | -11 -10 -10 -------- Run | Yrd Mat Sub Total Allies . | . . . Largest Group . | . . . Highest-Rated Group . | . . . Highest-Rated Ally . | . . . Total Orders . | . . . Ally Attacks . | . . . Total Damage . | . . . Kills . | . . . Allies Corrupted . | . . . Allies Melted . | . . . Intel | -11 -10 -10 ------- Run | Yrd Mat Sub Active Infowar (turns) 1352 | 73 1088 191 Seismic 1352 | 73 1088 191 Robot Analysis Total 2 | . 2 . Derelict Logs Recovered 1 | . . 1 Drone Launches . | . . . Drone Recoveries . | . . . Exploration | -11 -10 -10 ------------- Run | Yrd Mat Sub Turns Passed 3163 | 174 1088 1901 Spaces Moved 1654 | 75 560 1019 Core 5 | 5 . . Treads 1649 | 70 560 1019 Legs . | . . . Wheels . | . . . Hover . | . . . Flight . | . . . Fastest Speed 50 | 50 160 160 Average Speed 159 | 152 160 160 Slowest Speed 160 | 160 160 160 Overloaded Moves . | . . . Propulsion Burnouts . | . . . Robots Hopped . | . . . Potential Cave-ins . | . . . Cave-ins Triggered . | . . . Exploration Rate (%) 46 | 5 88 45 Regions Visited 2 Branch Regions 1 Pre-discovered Areas 1 | . . 1 Known Exits Taken . | . . . Unknown Exits Taken 2 | 1 1 . Scrap Searched 7 | . . 7 Spaces Dug 3 | . 3 . Terrain Destroyed 67 | . 29 38 Melee 3 | . 3 . Projectile 7 | . . 7 AOE 57 | . 26 31 Terrain Rammed . | . . . Walls Destroyed . | . . . Machines Disabled . | . . . Actions | -11 -10 -10 --------- Run | Yrd Mat Sub Total 1947 | 105 669 1173 Wait 88 | . 36 52 Move 1652 | 74 559 1019 Hop . | . . . Pick Up 29 | 8 9 12 Fast Attach 9 | 6 2 1 Attach 9 | 1 . 8 Detach . | . . . Swap 21 | 2 8 11 Drop 16 | 1 11 4 Fire 75 | 13 34 28 Melee 47 | . 9 38 Ram . | . . . Kick . | . . . Crush 1 | . 1 . Escape Stasis . | . . . Rewire . | . . . Trap . | . . . Miscellaneous . | . . . Route ------- -11/Scrapyard -10/Materials (discovered 5 exits: [*Mat x2] / [*Min x2] / *Sub) -10/Subcaves History --------- Turn | Location | Event 26 | -11/Scrapyard | Discovered new exit (range 16) 175 | -11/Scrapyard | Entered Materials 309 | -10/Materials | Build established: Mutant 335 | -10/Materials | Discovered new exit (range 12) 479 | -10/Materials | Discovered new exit (range 14) 690 | -10/Materials | Discovered new exit (range 10) 871 | -10/Materials | Discovered new exit (range 6) 975 | -10/Materials | Derelicts attacked the area 1012 | -10/Materials | Discovered new exit (range 13) 1263 | -10/Materials | Entered Subcaves 1443 | -10/Subcaves | Ambushed by swarm of Subdwellers 1443 | -10/Subcaves | Ambushed by Subdwellers from Twisted Machinery 1443 | -10/Subcaves | Ambushed by Subdwellers from Twisted Machinery 1445 | -10/Subcaves | Ambushed by Subdwellers from Twisted Machinery 1447 | -10/Subcaves | Ambushed by Subdwellers from Twisted Machinery 1447 | -10/Subcaves | Ambushed by Subdwellers from Twisted Machinery 1472 | -10/Subcaves | Destroyed 7 combat bots 1488 | -10/Subcaves | Core integrity fell below 50% 1523 | -10/Subcaves | Lost 8 parts (3p2n1u2w) 1578 | -10/Subcaves | Visited Clippyterm 1583 | -10/Subcaves | Learned location of Section 7 (-2) 1962 | -10/Subcaves | Visited 4L-MR0's lab 1982 | -10/Subcaves | Found Flightbrick 2160 | -10/Subcaves | Shifting Twisted Machinery released Sub. Beam Cannon 2177 | -10/Subcaves | Shifting Twisted Machinery released Sub. Optics 2213 | -10/Subcaves | Ambushed by Subdweller buried in earth 2238 | -10/Subcaves | A swath of the cavern ceiling suddenly collapsed 2289 | -10/Subcaves | Core integrity fell below 20% 2847 | -10/Subcaves | Learned location of 2 exits from Materials 3028 | -10/Subcaves | A swath of the cavern ceiling suddenly collapsed 3164 | -10/Subcaves | Destroyed by K6-Z6S(R) with Subdweller Laser Last Messages --------------- 02828_ 2R-P5G(R) destroyed. 02828_ HV Slug penetrates Wall. 02831_ Bore Cannon destroyed. 02835_ GR-4AO(R) destroyed. 02838_ Acquired 2 matter. 02839_ Acquired 24 matter. 02841_ Acquired 49 matter. 02844_ Acquired 8 matter. 02846_ Acquired 1 matter. 02847_ Acquired derelict log, extracted data. Data stored: Materials exits (x2). 02951_ Acquired 10 matter. 02953_ Subatomizers dissect the Core Shielding. 02953_ Acquired 29 matter. 02968_ Subatomizers dissect the Core Shielding. A swath of the cavern ceiling suddenly collapses. 03156_ BG-7ID(R) Sub. Power Source blasted off. 03156_ BG-7ID(R) destroyed. Map ----- +----------------------------------------------------+ | ?????## """##"### #???????????????????????????? | | ????## ##""""#??????????????????????????????? | | ????# #""####??????????????????????????????? | | ????# "#"# #??????????????????????????????? | | ????## ##"###??????????????????????????????? | | ?????## ##"#??????????????????????????????? | | ??????## ##??????????????????????????????? | | ???????## #???????????????????????????????? | | ????????# ##??????????????????????????????? | | ???????## ###????????????????????????????? | | ???????# #??? ?????????????????????? | | ???????### #??? ## ???????????????????? | | ?????????## ##??# # ???????????????????? | | ??????????### #???# ????????????????????? | | ????????????# ##??# #?????????????????????? | | ????????????# ##?# ###?#####?????????????? | | ????????????### ## ## ##????????????? | | ??????????????## #????????????? | | ??????????????## ?????????????? | | ??????????????# ???????????????? | | ?????????????## ### #????????????????? | | ????????????## ### #?????????????????? | | ????????????# ## #?????????????????? | | ????????????# # R!|% #?????????????????? | | ????????????# ## |*% #?????????????????? | | ????????????# ## ####=@ #?????????????????? | | ????????????# ## ##??##" #?????????????????? | | ????????????# ## "#???# "##?????????????????? | | ???????????#"""## ##???# ""#??????????????????? | | ??????????# """# "###?# ###??????????????????? | | ??????????# ""## """### #????????????????????? | | ??????????## ###" """"#"""#????????????????????? | | ???????????#####"""" "" # ????????????????????? | | ???????????????###"#" ## ???????????????????? | | ?????????????????#### ### ???????????????????? | | ????????????????????# #?? ???????????????????? | | ???????????????????"" ??# #???????????????????? | | ?????????????????? "" ?? ???????????????????? | | ????????????????? "" ""? ???????????????????? | | ????????????????# ## """ "##????????????????????? | | ???????????????" ?# ##"""##?????????????????????? | | ??????????????" #??# ?? ""#??????????????????????? | | ??????????????##???# ?? "???????????????????????? | | ???????????????????# ?? ????????????????????????? | | ???????????????????##??##????????????????????????? | | ?????????????????????????????????????????????????? | | ?????????????????????????????????????????????????? | | ?????????????????????????????????????????????????? | | ?????????????????????????????????????????????????? | | ?????????????????????????????????????????????????? | +----------------------------------------------------+ Best States ------------- Heat Dissipation 25 Energy Generation 15 Energy Capacity 250 Matter Stores 300 Matter Capacity 300 Sight Range 16 Terrain Scan Density 10 Armor Coverage 100 Evasion (%) 40 Recoil Reduction 2 Item Schematics ----------------- Hcp. Storage Unit | -10/Materials | Hacked Robot Schematics ------------------ None Fabricated ------------ Nothing Repaired ---------- Nothing Alien Tech Used ----------------- None Achievements -------------- None Challenges ------------ None Game ------ Seed CentriumMobileMesh Manual? 0 Play Time 00:23:26 Cumulative 381.6 hours Start 2025.08.13 @ 13:53:40 End 2025.08.13 @ 14:08:41 Sessions 1 Manual Loads 0 Difficulty Rogue Special Mode None Game No. 237 Rogue 237 Adventurer 0 Explorer 0 Win Type - Total 8 Types 8/0/0/0/0/0/0/0/0/0 Lore% 79 Gallery% 75 Achievement% 68 Wizard Run 0 Options --------- Layout 1 ASCII 0 Keyboard 1 Movement Numpad Keybinds 0 Fullscreen 2 Font 24/Smallcaps Map View 50x35 Zoom Use 0% Tactical HUD 1 Map Filters NONE Filters NONE Steam 1 RUN: c02151f2-c755-429f-bad4-d56d8c7ccaef